[Event "*** Titled Tuesday 3|2 Blitz (Late)"]
[Site "Chess.com"]
[Date "2016.11.01"]
[Round "1"]
[White "popov_m"]
[Black "Gabrielian_Artur"]
[Result "1/2-1/2"]
[WhiteElo "2259"]
[BlackElo "2569"]
[TimeControl "180+2"]
[EndTime "17:13:05 PDT"]
[Termination "Game drawn by repetition"]

1. c4 {[%clk 0:03:00.3]} 1... Nf6 {[%clk 0:02:54.2]} 2. g3 {[%clk 0:03:01.5]}
2... g6 {[%clk 0:02:55.2]} 3. Bg2 {[%clk 0:03:03]} 3... Bg7 {[%clk 0:02:56.2]}
4. Nc3 {[%clk 0:03:04.7]} 4... O-O {[%clk 0:02:57.1]} 5. e4 {[%clk 0:03:06.4]}
5... d6 {[%clk 0:02:58.3]} 6. Nge2 {[%clk 0:03:08.1]} 6... c5 {[%clk 0:02:58.5]}
7. O-O {[%clk 0:03:09.6]} 7... Nc6 {[%clk 0:02:59.4]} 8. d3 {[%clk 0:03:10.9]}
8... Bd7 {[%clk 0:02:45.1]} 9. h3 {[%clk 0:03:01.8]} 9... a6 {[%clk 0:02:46]}
10. a4 {[%clk 0:03:00.6]} 10... Nd4 {[%clk 0:02:38.2]} 11. Nxd4 {[%clk
0:02:59.4]} 11... cxd4 {[%clk 0:02:39.4]} 12. Ne2 {[%clk 0:03:01.1]} 12... e5
{[%clk 0:02:40.3]} 13. a5 {[%clk 0:02:52.1]} 13... b6 {[%clk 0:02:23.5]} 14. b4
{[%clk 0:02:50.9]} 14... b5 {[%clk 0:02:23.1]} 15. c5 {[%clk 0:01:48.2]} 15...
dxc5 {[%clk 0:02:23.3]} 16. bxc5 {[%clk 0:01:48.3]} 16... Rc8 {[%clk 0:02:24]}
17. Bd2 {[%clk 0:01:45.4]} 17... Re8 {[%clk 0:02:21.6]} 18. Bb4 {[%clk
0:01:43.4]} 18... Bf8 {[%clk 0:02:22.1]} 19. Rc1 {[%clk 0:01:40.2]} 19... Bc6
{[%clk 0:02:20.4]} 20. f4 {[%clk 0:01:38]} 20... Nd7 {[%clk 0:02:20.9]} 21. f5
{[%clk 0:01:35.7]} 21... Bh6 {[%clk 0:02:18.4]} 22. Bd2 {[%clk 0:01:34.3]} 22...
Bxd2 {[%clk 0:02:14.2]} 23. Qxd2 {[%clk 0:01:34.8]} 23... Kg7 {[%clk 0:02:15]}
24. g4 {[%clk 0:01:02.7]} 24... f6 {[%clk 0:02:13.8]} 25. g5 {[%clk 0:01:03]}
25... fxg5 {[%clk 0:02:10.7]} 26. Ng3 {[%clk 0:00:58.2]} 26... Rf8 {[%clk
0:02:07.2]} 27. Rf2 {[%clk 0:00:50.2]} 27... Qe7 {[%clk 0:01:39.8]} 28. Rcf1
{[%clk 0:00:47.3]} 28... Rce8 {[%clk 0:01:34.2]} 29. f6+ {[%clk 0:00:40.2]}
29... Rxf6 {[%clk 0:01:26.8]} 30. Rxf6 {[%clk 0:00:39.8]} 30... Nxf6 {[%clk
0:01:27.6]} 31. Qxg5 {[%clk 0:00:41.5]} 31... Kf7 {[%clk 0:00:20.3]} 32. Bf3
{[%clk 0:00:42.7]} 32... Bd7 {[%clk 0:00:16.4]} 33. Bg4 {[%clk 0:00:28.5]} 33...
Bxg4 {[%clk 0:00:16.9]} 34. hxg4 {[%clk 0:00:30.4]} 34... Rf8 {[%clk 0:00:18.3]}
35. c6 {[%clk 0:00:27.2]} 35... Ke6 {[%clk 0:00:18.7]} 36. Rc1 {[%clk
0:00:22.7]} 36... Ne8 {[%clk 0:00:15.8]} 37. Qxe7+ {[%clk 0:00:19.2]} 37... Kxe7
{[%clk 0:00:16.9]} 38. c7 {[%clk 0:00:21.1]} 38... Nd6 {[%clk 0:00:18.1]} 39.
Rc6 {[%clk 0:00:20.3]} 39... Kd7 {[%clk 0:00:19.2]} 40. Rxa6 {[%clk 0:00:21.5]}
40... Kxc7 {[%clk 0:00:20.5]} 41. Ra7+ {[%clk 0:00:20.5]} 41... Kc6 {[%clk
0:00:21.7]} 42. Ra6+ {[%clk 0:00:22.1]} 42... Kc5 {[%clk 0:00:22.8]} 43. Ne2
{[%clk 0:00:21.7]} 43... b4 {[%clk 0:00:24.1]} 44. Nc1 {[%clk 0:00:22.8]} 44...
Rd8 {[%clk 0:00:20.8]} 45. Rb6 {[%clk 0:00:24.1]} 45... Nxe4 {[%clk 0:00:15.9]}
46. Nb3+ {[%clk 0:00:13.8]} 46... Kd5 {[%clk 0:00:16.7]} 47. Rb5+ {[%clk
0:00:15.2]} 47... Kc6 {[%clk 0:00:18]} 48. Rb6+ {[%clk 0:00:16.9]} 48... Kd5
{[%clk 0:00:18.6]} 49. dxe4+ {[%clk 0:00:18]} 49... Kxe4 {[%clk 0:00:19.4]} 50.
Rxb4 {[%clk 0:00:19.7]} 50... Ke3 {[%clk 0:00:20]} 51. Nc5 {[%clk 0:00:19.6]}
51... d3 {[%clk 0:00:19.2]} 52. Rb3 {[%clk 0:00:18.6]} 52... e4 {[%clk
0:00:19.3]} 53. a6 {[%clk 0:00:20.2]} 53... Ke2 {[%clk 0:00:20.1]} 54. Nxe4
{[%clk 0:00:20.3]} 54... d2 {[%clk 0:00:21.3]} 55. Nc3+ {[%clk 0:00:14.8]} 55...
Kd3 {[%clk 0:00:20.9]} 56. a7 {[%clk 0:00:14.5]} 56... Ra8 {[%clk 0:00:18.1]}
57. Ra3 {[%clk 0:00:13.2]} 57... Kc2 {[%clk 0:00:18.9]} 58. Kf2 {[%clk
0:00:13.4]} 58... Kb2 {[%clk 0:00:19.5]} 59. Ra6 {[%clk 0:00:06.2]} 59... Kxc3
{[%clk 0:00:20.7]} 60. Rc6+ {[%clk 0:00:06.9]} 60... Kb2 {[%clk 0:00:20.9]} 61.
Rd6 {[%clk 0:00:07.9]} 61... Kc1 {[%clk 0:00:22.1]} 62. Rc6+ {[%clk 0:00:08.8]}
62... Kd1 {[%clk 0:00:23.2]} 63. Rc7 {[%clk 0:00:09.1]} 63... Rf8+ {[%clk
0:00:23.6]} 64. Kg3 {[%clk 0:00:10.2]} 64... Ke1 {[%clk 0:00:20]} 65. Re7+
{[%clk 0:00:11.1]} 65... Kf1 {[%clk 0:00:20.9]} 66. Rd7 {[%clk 0:00:10.8]} 66...
Ke2 {[%clk 0:00:22]} 67. Re7+ {[%clk 0:00:11.2]} 67... Kd3 {[%clk 0:00:23.1]}
68. Rd7+ {[%clk 0:00:10.8]} 68... Kc2 {[%clk 0:00:24.3]} 69. Rc7+ {[%clk
0:00:12.3]} 69... Kd1 {[%clk 0:00:25.6]} 70. Rxh7 {[%clk 0:00:07.3]} 70... Re8
{[%clk 0:00:23.8]} 71. Rd7 {[%clk 0:00:07.1]} 71... Ke2 {[%clk 0:00:22.3]} 72.
Re7+ {[%clk 0:00:05.6]} 72... Rxe7 {[%clk 0:00:23.6]} 73. a8=Q {[%clk
0:00:07.5]} 73... d1=Q {[%clk 0:00:22.1]} 74. Qf3+ {[%clk 0:00:07.3]} 74... Kd2
{[%clk 0:00:22.3]} 75. Qf4+ {[%clk 0:00:09]} 75... Re3+ {[%clk 0:00:23]} 76. Kh4
{[%clk 0:00:09.5]} 76... Qf3 {[%clk 0:00:24.1]} 77. Qd6+ {[%clk 0:00:10.3]}
77... Rd3 {[%clk 0:00:25.2]} 78. Qb4+ {[%clk 0:00:11.6]} 78... Ke2 {[%clk
0:00:26.4]} 79. Kg5 {[%clk 0:00:08.7]} 79... Qe3+ {[%clk 0:00:26.4]} 80. Kxg6
{[%clk 0:00:09.4]} 80... Qe6+ {[%clk 0:00:26.6]} 81. Kh5 {[%clk 0:00:09.9]}
81... Rd5+ {[%clk 0:00:27.5]} 82. g5 {[%clk 0:00:11.2]} 82... Qf7+ {[%clk
0:00:24.3]} 83. Kh6 {[%clk 0:00:10.5]} 83... Qe6+ {[%clk 0:00:22.9]} 84. Kh5
{[%clk 0:00:11.5]} 84... Rd3 {[%clk 0:00:15.1]} 85. Qb2+ {[%clk 0:00:09.1]}
85... Ke3 {[%clk 0:00:14.8]} 86. Qc1+ {[%clk 0:00:09.3]} 86... Kd4 {[%clk
0:00:16]} 87. Qb2+ {[%clk 0:00:10.2]} 87... Ke4 {[%clk 0:00:15.1]} 88. Qg2+
{[%clk 0:00:08.8]} 88... Kd4 {[%clk 0:00:12.9]} 89. Qb2+ {[%clk 0:00:09.8]}
89... Rc3 {[%clk 0:00:13.9]} 90. Qd2+ {[%clk 0:00:11]} 90... Rd3 {[%clk
0:00:14.8]} 91. Qb2+ {[%clk 0:00:12.4]} 91... Kc5 {[%clk 0:00:15]} 92. Qc2+
{[%clk 0:00:13.1]} 92... Kd4 {[%clk 0:00:15.7]} 93. Qb2+ {[%clk 0:00:14.1]}
1/2-1/2

[Event "*** Titled Tuesday 3|2 Blitz (Late)"]
[Site "Chess.com"]
[Date "2016.11.01"]
[Round "2"]
[White "spirals5"]
[Black "ZapataCharlesS"]
[Result "1-0"]
[WhiteElo "2270"]
[BlackElo "2598"]
[TimeControl "180+2"]
[EndTime "17:17:49 PDT"]
[Termination "spirals5 won by resignation"]

1. e4 {[%clk 0:03:01.9]} 1... c5 {[%clk 0:02:54.1]} 2. Nc3 {[%clk 0:03:01.1]}
2... Nc6 {[%clk 0:02:55.3]} 3. g3 {[%clk 0:03:01.7]} 3... g6 {[%clk 0:02:55.6]}
4. Bg2 {[%clk 0:03:02.5]} 4... Bg7 {[%clk 0:02:57.5]} 5. d3 {[%clk 0:03:03.8]}
5... d6 {[%clk 0:02:57.2]} 6. f4 {[%clk 0:03:04.9]} 6... h5 {[%clk 0:02:59.1]}
7. Nf3 {[%clk 0:03:05.5]} 7... h4 {[%clk 0:02:45]} 8. Nxh4 {[%clk 0:03:05.4]}
8... Rxh4 {[%clk 0:02:29.3]} 9. gxh4 {[%clk 0:03:05.9]} 9... Nf6 {[%clk
0:02:23.1]} 10. O-O {[%clk 0:03:02.4]} 10... Bg4 {[%clk 0:02:24.6]} 11. Qe1
{[%clk 0:03:00.8]} 11... Nd4 {[%clk 0:02:25]} 12. Qf2 {[%clk 0:03:01.4]} 12...
Qd7 {[%clk 0:02:19.8]} 13. Be3 {[%clk 0:03:01]} 13... O-O-O {[%clk 0:02:17.5]}
14. Bxd4 {[%clk 0:02:30.2]} 14... Nxe4 {[%clk 0:02:17.5]} 15. Bxg7 {[%clk
0:02:21.8]} 15... Nxf2 {[%clk 0:02:14.7]} 16. Rxf2 {[%clk 0:02:22.8]} 16... Rg8
{[%clk 0:02:08.4]} 17. Bh6 {[%clk 0:02:19.7]} 17... Rh8 {[%clk 0:02:09.5]} 18.
Bg5 {[%clk 0:02:19.2]} 18... f6 {[%clk 0:02:09.8]} 19. b4 {[%clk 0:02:12.6]}
19... fxg5 {[%clk 0:02:09.6]} 20. hxg5 {[%clk 0:02:13]} 20... Bh3 {[%clk
0:02:05.5]} 21. Nd5 {[%clk 0:02:09.8]} 21... Bxg2 {[%clk 0:02:03.7]} 22. Rxg2
{[%clk 0:02:10.1]} 22... e6 {[%clk 0:02:04.6]} 23. Nf6 {[%clk 0:02:08.7]} 23...
Qc6 {[%clk 0:02:04.7]} 24. bxc5 {[%clk 0:02:06.6]} 24... Qxc5+ {[%clk
0:02:05.2]} 25. Kh1 {[%clk 0:02:07.2]} 25... Rh3 {[%clk 0:02:01.7]} 26. Rf1
{[%clk 0:02:02.2]} 26... Re3 {[%clk 0:01:56.4]} 27. Ne4 {[%clk 0:02:00.3]} 27...
Qb5 {[%clk 0:01:51.2]} 28. Nxd6+ {[%clk 0:02:00.2]} 1-0

[Event "*** Titled Tuesday 3|2 Blitz (Late)"]
[Site "Chess.com"]
[Date "2016.11.01"]
[Round "2"]
[White "enfanterrible"]
[Black "Shivagami"]
[Result "1-0"]
[WhiteElo "2134"]
[BlackElo "2063"]
[TimeControl "180+2"]
[EndTime "17:19:22 PDT"]
[Termination "enfanterrible won by resignation"]

1. d3 {[%clk 0:03:00.7]} 1... d5 {[%clk 0:02:56.6]} 2. Nd2 {[%clk 0:03:02.4]}
2... g6 {[%clk 0:02:55.5]} 3. e4 {[%clk 0:03:03.5]} 3... Bg7 {[%clk 0:02:53.8]}
4. Ngf3 {[%clk 0:03:04.7]} 4... c5 {[%clk 0:02:43.9]} 5. c3 {[%clk 0:03:01.4]}
5... Nc6 {[%clk 0:02:42.6]} 6. Be2 {[%clk 0:03:02.6]} 6... d4 {[%clk 0:01:40.6]}
7. c4 {[%clk 0:03:02.6]} 7... Nf6 {[%clk 0:01:37.8]} 8. O-O {[%clk 0:03:03.6]}
8... O-O {[%clk 0:01:36.7]} 9. Ne1 {[%clk 0:03:04.3]} 9... e5 {[%clk 0:01:33.6]}
10. a3 {[%clk 0:03:05.3]} 10... Ne8 {[%clk 0:01:15.4]} 11. g3 {[%clk 0:03:06.1]}
11... Bh3 {[%clk 0:01:02.4]} 12. Ng2 {[%clk 0:03:07.2]} 12... f5 {[%clk
0:01:02.1]} 13. exf5 {[%clk 0:03:08]} 13... gxf5 {[%clk 0:01:01.1]} 14. Bf3
{[%clk 0:03:09.2]} 14... Nd6 {[%clk 0:00:46.6]} 15. Re1 {[%clk 0:03:06]} 15...
Qf6 {[%clk 0:00:37.4]} 16. Qa4 {[%clk 0:02:57.6]} 16... Rac8 {[%clk 0:00:25]}
17. Bxc6 {[%clk 0:02:44.7]} 17... Rxc6 {[%clk 0:00:23.2]} 18. f4 {[%clk
0:02:32.2]} 18... Bxg2 {[%clk 0:00:20]} 19. Kxg2 {[%clk 0:02:33.4]} 19... exf4
{[%clk 0:00:20.8]} 20. Nf3 {[%clk 0:02:26.9]} 20... fxg3 {[%clk 0:00:18.4]} 21.
hxg3 {[%clk 0:02:28.2]} 21... Qg6 {[%clk 0:00:14.8]} 22. Bf4 {[%clk 0:02:27.4]}
22... Qg4 {[%clk 0:00:14.3]} 23. Rh1 {[%clk 0:02:23.1]} 23... Nc8 {[%clk
0:00:13.7]} 24. Rh4 {[%clk 0:02:22]} 24... Qg6 {[%clk 0:00:13.7]} 25. Rah1
{[%clk 0:02:23.1]} 25... Nb6 {[%clk 0:00:11.8]} 26. Qc2 {[%clk 0:02:23.6]} 26...
h6 {[%clk 0:00:09.1]} 27. Qd2 {[%clk 0:02:19.3]} 27... Rff6 {[%clk 0:00:09.3]}
28. Ne5 {[%clk 0:02:19.5]} 28... Rfe6 {[%clk 0:00:06.6]} 29. Nxg6 {[%clk
0:02:20.2]} 1-0

[Event "*** Titled Tuesday 3|2 Blitz (Late)"]
[Site "Chess.com"]
[Date "2016.11.01"]
[Round "2"]
[White "Iball95"]
[Black "calemcc"]
[Result "1-0"]
[WhiteElo "2479"]
[BlackElo "2208"]
[TimeControl "180+2"]
[EndTime "17:20:16 PDT"]
[Termination "Iball95 won by checkmate"]

1. e4 {[%clk 0:03:01.9]} 1... e6 {[%clk 0:02:37.9]} 2. d4 {[%clk 0:03:01.6]}
2... d5 {[%clk 0:02:36.6]} 3. Nd2 {[%clk 0:03:03]} 3... Nc6 {[%clk 0:02:37.2]}
4. Ngf3 {[%clk 0:03:01]} 4... Nf6 {[%clk 0:02:37.3]} 5. e5 {[%clk 0:03:01.7]}
5... Nd7 {[%clk 0:02:38]} 6. Be2 {[%clk 0:03:01.9]} 6... Be7 {[%clk 0:02:38.1]}
7. Nf1 {[%clk 0:03:00.7]} 7... O-O {[%clk 0:02:37.6]} 8. Ne3 {[%clk 0:03:00.2]}
8... f6 {[%clk 0:02:38.2]} 9. exf6 {[%clk 0:03:02.1]} 9... Nxf6 {[%clk
0:02:38.9]} 10. O-O {[%clk 0:03:03]} 10... Bd6 {[%clk 0:02:39.4]} 11. c4 {[%clk
0:03:04]} 11... b6 {[%clk 0:02:35.5]} 12. Qb3 {[%clk 0:02:50.3]} 12... Ne7
{[%clk 0:02:33.5]} 13. Bd2 {[%clk 0:02:39.8]} 13... Bb7 {[%clk 0:02:10.4]} 14.
c5 {[%clk 0:02:36.8]} 14... Bf4 {[%clk 0:02:03.7]} 15. Rac1 {[%clk 0:02:33.5]}
15... Ne4 {[%clk 0:01:52]} 16. Qc2 {[%clk 0:02:32.8]} 16... bxc5 {[%clk
0:01:38.8]} 17. dxc5 {[%clk 0:02:32.1]} 17... c6 {[%clk 0:01:39.3]} 18. Rcd1
{[%clk 0:02:22.4]} 18... Qc7 {[%clk 0:01:20.2]} 19. Bd3 {[%clk 0:02:15.5]} 19...
Nxd2 {[%clk 0:01:00.1]} 20. Bxh7+ {[%clk 0:02:15.8]} 20... Kh8 {[%clk
0:01:00.2]} 21. Rxd2 {[%clk 0:02:17.7]} 21... Nf5 {[%clk 0:00:58]} 22. Bxf5
{[%clk 0:02:16.5]} 22... exf5 {[%clk 0:00:58.5]} 23. Rd4 {[%clk 0:02:16.5]}
23... Rae8 {[%clk 0:00:56.7]} 24. Nxf5 {[%clk 0:02:11.9]} 24... Kg8 {[%clk
0:00:52.7]} 25. g3 {[%clk 0:02:03.9]} 25... Bc8 {[%clk 0:00:49.7]} 26. Rxf4
{[%clk 0:02:03.8]} 26... Qxf4 {[%clk 0:00:44.6]} 27. gxf4 {[%clk 0:02:03.6]}
27... Bxf5 {[%clk 0:00:45.8]} 28. Qd2 {[%clk 0:02:01.2]} 28... Re4 {[%clk
0:00:37.4]} 29. Re1 {[%clk 0:01:57.4]} 29... Rc4 {[%clk 0:00:37.2]} 30. Nd4
{[%clk 0:01:52.6]} 30... Be4 {[%clk 0:00:35.7]} 31. f3 {[%clk 0:01:51.8]} 31...
Bg6 {[%clk 0:00:34]} 32. b4 {[%clk 0:01:49.7]} 32... Bh5 {[%clk 0:00:30.7]} 33.
a3 {[%clk 0:01:49.8]} 33... Rf6 {[%clk 0:00:31]} 34. f5 {[%clk 0:01:42.6]} 34...
g6 {[%clk 0:00:23.2]} 35. Qh6 {[%clk 0:01:39.6]} 35... Rxd4 {[%clk 0:00:19.9]}
36. Re8+ {[%clk 0:01:39.3]} 36... Kf7 {[%clk 0:00:20.7]} 37. Qf8# {[%clk
0:01:40.1]} 1-0

[Event "*** Titled Tuesday 3|2 Blitz (Late)"]
[Site "Chess.com"]
[Date "2016.11.01"]
[Round "2"]
[White "brightthunder"]
[Black "howitzer14"]
[Result "0-1"]
[WhiteElo "2555"]
[BlackElo "2769"]
[TimeControl "180+2"]
[EndTime "17:20:34 PDT"]
[Termination "howitzer14 won by resignation"]

1. e4 {[%clk 0:03:01.9]} 1... e5 {[%clk 0:03:00.6]} 2. Nf3 {[%clk 0:03:02.9]}
2... Nc6 {[%clk 0:03:02.5]} 3. Bb5 {[%clk 0:03:03.5]} 3... Nge7 {[%clk
0:03:03.3]} 4. Nc3 {[%clk 0:03:01.5]} 4... g6 {[%clk 0:03:03.5]} 5. d4 {[%clk
0:03:01.9]} 5... exd4 {[%clk 0:03:03.7]} 6. Nxd4 {[%clk 0:03:03.8]} 6... Bg7
{[%clk 0:03:04.9]} 7. Be3 {[%clk 0:02:47.2]} 7... O-O {[%clk 0:03:05.3]} 8. O-O
{[%clk 0:02:43.9]} 8... d5 {[%clk 0:03:02.6]} 9. Bxc6 {[%clk 0:02:24.6]} 9...
bxc6 {[%clk 0:03:00.2]} 10. Nb3 {[%clk 0:02:21.1]} 10... dxe4 {[%clk 0:02:46]}
11. Bc5 {[%clk 0:02:18.5]} 11... Qxd1 {[%clk 0:02:20.3]} 12. Raxd1 {[%clk
0:02:20.4]} 12... Re8 {[%clk 0:02:21.6]} 13. Nxe4 {[%clk 0:01:55.3]} 13... Nd5
{[%clk 0:02:19.6]} 14. Rfe1 {[%clk 0:01:48]} 14... Bf5 {[%clk 0:02:17.5]} 15. f3
{[%clk 0:01:35.2]} 15... Bxb2 {[%clk 0:02:18.4]} 16. Bd4 {[%clk 0:01:28.6]}
16... Ba3 {[%clk 0:02:15.4]} 17. Nbc5 {[%clk 0:01:11.7]} 17... Bxe4 {[%clk
0:01:50.7]} 18. Nxe4 {[%clk 0:01:10.6]} 18... f5 {[%clk 0:01:51.1]} 19. Nf6+
{[%clk 0:01:07.9]} 19... Nxf6 {[%clk 0:01:51.6]} 20. Bxf6 {[%clk 0:01:09.8]}
20... Kf7 {[%clk 0:01:52.5]} 21. Be5 {[%clk 0:01:05.2]} 21... Bd6 {[%clk
0:01:50.1]} 22. Bd4 {[%clk 0:00:51.4]} 22... Rxe1+ {[%clk 0:01:46.4]} 23. Rxe1
{[%clk 0:00:52]} 23... a6 {[%clk 0:01:40.1]} 24. Rb1 {[%clk 0:00:50.4]} 24...
Ke6 {[%clk 0:01:39]} 25. Kf2 {[%clk 0:00:42]} 25... Kd5 {[%clk 0:01:39.9]} 26.
Be3 {[%clk 0:00:40.6]} 26... Kc4 {[%clk 0:01:40.6]} 27. Rb3 {[%clk 0:00:33.6]}
27... a5 {[%clk 0:01:31]} 28. h3 {[%clk 0:00:33.4]} 28... a4 {[%clk 0:01:30.9]}
29. Rd3 {[%clk 0:00:30.5]} 29... c5 {[%clk 0:01:24]} 30. Bd2 {[%clk 0:00:29.4]}
30... Be5 {[%clk 0:01:18.9]} 31. Rd7 {[%clk 0:00:30.2]} 31... Rb8 {[%clk
0:01:16]} 32. Rxh7 {[%clk 0:00:29.5]} 32... Rb2 {[%clk 0:01:16.4]} 33. Ke2
{[%clk 0:00:23.6]} 33... Rxc2 {[%clk 0:01:14.8]} 34. Kd1 {[%clk 0:00:24.5]}
34... Rxa2 {[%clk 0:01:15.8]} 0-1

[Event "*** Titled Tuesday 3|2 Blitz (Late)"]
[Site "Chess.com"]
[Date "2016.11.01"]
[Round "2"]
[White "hardingstoptry"]
[Black "Rating-Schmating"]
[Result "1-0"]
[WhiteElo "2580"]
[BlackElo "2233"]
[TimeControl "180+2"]
[EndTime "17:20:42 PDT"]
[Termination "hardingstoptry won by resignation"]

1. Nf3 {[%clk 0:03:02]} 1... Nf6 {[%clk 0:03:00.8]} 2. g3 {[%clk 0:03:03.9]}
2... b6 {[%clk 0:03:00.6]} 3. Bg2 {[%clk 0:03:05.8]} 3... Bb7 {[%clk 0:03:01.9]}
4. O-O {[%clk 0:03:03.8]} 4... c5 {[%clk 0:03:02.9]} 5. c4 {[%clk 0:02:58.1]}
5... e6 {[%clk 0:03:03.7]} 6. Nc3 {[%clk 0:02:59.4]} 6... a6 {[%clk 0:03:02.5]}
7. d4 {[%clk 0:02:59]} 7... cxd4 {[%clk 0:03:03.3]} 8. Nxd4 {[%clk 0:03:00.6]}
8... Bxg2 {[%clk 0:03:02.9]} 9. Kxg2 {[%clk 0:03:02.5]} 9... Qc7 {[%clk
0:03:02.8]} 10. Bg5 {[%clk 0:02:57.3]} 10... Be7 {[%clk 0:03:02.3]} 11. Rc1
{[%clk 0:02:54.9]} 11... d6 {[%clk 0:03:02.7]} 12. e4 {[%clk 0:02:55.7]} 12...
Nbd7 {[%clk 0:03:03.5]} 13. f3 {[%clk 0:02:49.8]} 13... h6 {[%clk 0:03:03.2]}
14. Be3 {[%clk 0:02:48.8]} 14... Qb7 {[%clk 0:03:03.3]} 15. b3 {[%clk
0:02:49.8]} 15... O-O {[%clk 0:03:03.2]} 16. Kg1 {[%clk 0:02:44.4]} 16... Rad8
{[%clk 0:02:50.5]} 17. Re1 {[%clk 0:02:14.6]} 17... Rfe8 {[%clk 0:02:50.6]} 18.
a4 {[%clk 0:02:01.5]} 18... Bf8 {[%clk 0:02:49.6]} 19. Bf2 {[%clk 0:01:53.5]}
19... d5 {[%clk 0:02:44.6]} 20. e5 {[%clk 0:01:53.1]} 20... Nh7 {[%clk
0:02:44.3]} 21. f4 {[%clk 0:01:51.5]} 21... dxc4 {[%clk 0:02:40.5]} 22. bxc4
{[%clk 0:01:53.4]} 22... Nc5 {[%clk 0:02:41.1]} 23. Qc2 {[%clk 0:01:47.6]} 23...
f5 {[%clk 0:02:35.6]} 24. a5 {[%clk 0:01:45.6]} 24... bxa5 {[%clk 0:02:29.9]}
25. Rb1 {[%clk 0:01:46.8]} 25... Qc7 {[%clk 0:02:30.3]} 26. Red1 {[%clk
0:01:47.2]} 26... Rc8 {[%clk 0:02:26.8]} 27. h3 {[%clk 0:01:40.2]} 27... Be7
{[%clk 0:02:21.2]} 28. g4 {[%clk 0:01:36.5]} 28... g6 {[%clk 0:02:22]} 29. gxf5
{[%clk 0:01:34]} 29... gxf5 {[%clk 0:02:23.1]} 30. Kh2 {[%clk 0:01:32.7]} 30...
Kh8 {[%clk 0:02:23.1]} 31. Rg1 {[%clk 0:01:33.8]} 31... Rg8 {[%clk 0:02:23.8]}
32. Nxe6 {[%clk 0:01:11.7]} 32... Nxe6 {[%clk 0:02:17.6]} 33. Nd5 {[%clk
0:01:12.7]} 33... Qxc4 {[%clk 0:01:54.7]} 34. Rxg8+ {[%clk 0:01:04.8]} 34...
Kxg8 {[%clk 0:01:54.9]} 35. Nxe7+ {[%clk 0:00:52.1]} 35... Kh8 {[%clk
0:01:52.2]} 36. Qxf5 {[%clk 0:00:52.9]} 36... Re8 {[%clk 0:01:41.3]} 37. Ng6+
{[%clk 0:00:41.9]} 37... Kg8 {[%clk 0:01:39.5]} 38. Rb7 {[%clk 0:00:43]} 38...
Nc7 {[%clk 0:01:37.1]} 39. Bb6 {[%clk 0:00:43.6]} 39... Qe2+ {[%clk 0:01:35.5]}
40. Kg3 {[%clk 0:00:41.1]} 40... Qd3+ {[%clk 0:01:33.3]} 41. Qxd3 {[%clk
0:00:40.3]} 1-0

[Event "*** Titled Tuesday 3|2 Blitz (Late)"]
[Site "Chess.com"]
[Date "2016.11.01"]
[Round "2"]
[White "swayamsm"]
[Black "micfel"]
[Result "1-0"]
[WhiteElo "2660"]
[BlackElo "2272"]
[TimeControl "180+2"]
[EndTime "17:21:00 PDT"]
[Termination "swayamsm won by resignation"]

1. d4 {[%clk 0:03:01.9]} 1... d5 {[%clk 0:02:59.7]} 2. c4 {[%clk 0:03:03.8]}
2... c6 {[%clk 0:03:00.2]} 3. Nc3 {[%clk 0:03:05.7]} 3... Nf6 {[%clk 0:03:00.6]}
4. Nf3 {[%clk 0:03:07.6]} 4... e6 {[%clk 0:03:01.2]} 5. Bg5 {[%clk 0:03:09]}
5... Be7 {[%clk 0:03:01.9]} 6. e3 {[%clk 0:03:10.5]} 6... O-O {[%clk 0:03:02.8]}
7. Rc1 {[%clk 0:03:10.3]} 7... Nbd7 {[%clk 0:03:00.9]} 8. Bd3 {[%clk 0:03:11.2]}
8... b6 {[%clk 0:02:59.2]} 9. O-O {[%clk 0:03:12.1]} 9... Bb7 {[%clk 0:02:59.8]}
10. e4 {[%clk 0:03:12.7]} 10... dxc4 {[%clk 0:02:59.8]} 11. Bxc4 {[%clk
0:03:13.3]} 11... c5 {[%clk 0:03:00.7]} 12. d5 {[%clk 0:03:14.1]} 12... exd5
{[%clk 0:03:00.9]} 13. exd5 {[%clk 0:03:14.4]} 13... Qb8 {[%clk 0:02:49.2]} 14.
Re1 {[%clk 0:03:10.5]} 14... Bd6 {[%clk 0:02:49.4]} 15. h3 {[%clk 0:03:04.6]}
15... a6 {[%clk 0:02:49.8]} 16. a4 {[%clk 0:03:05.7]} 16... Re8 {[%clk
0:02:46.4]} 17. Qd3 {[%clk 0:03:06.3]} 17... h6 {[%clk 0:02:46]} 18. Bh4 {[%clk
0:03:06.4]} 18... Bf4 {[%clk 0:02:42.8]} 19. Rxe8+ {[%clk 0:03:05.3]} 19... Qxe8
{[%clk 0:02:42.3]} 20. Re1 {[%clk 0:03:06.5]} 20... Qf8 {[%clk 0:02:42.7]} 21.
Ne4 {[%clk 0:03:05.2]} 21... Nxe4 {[%clk 0:02:39.4]} 22. Qxe4 {[%clk 0:03:07.1]}
22... Bd6 {[%clk 0:02:37.7]} 23. Bd3 {[%clk 0:03:06.9]} 23... g6 {[%clk
0:02:31.9]} 24. Bc4 {[%clk 0:02:58.3]} 24... Kg7 {[%clk 0:02:24]} 25. Qe3 {[%clk
0:02:54.3]} 25... Qb8 {[%clk 0:02:10.4]} 26. Be7 {[%clk 0:02:43.5]} 26... Qc7
{[%clk 0:02:06.5]} 27. Bxd6 {[%clk 0:02:40.9]} 27... Qxd6 {[%clk 0:02:07]} 28.
Qe7 {[%clk 0:02:42.8]} 28... Qxe7 {[%clk 0:01:53.8]} 29. Rxe7 {[%clk 0:02:44.7]}
29... Rd8 {[%clk 0:01:46.7]} 30. d6 {[%clk 0:02:45.9]} 30... Bxf3 {[%clk
0:01:38.7]} 31. gxf3 {[%clk 0:02:37.9]} 31... b5 {[%clk 0:01:29.1]} 32. Bxf7
{[%clk 0:02:18.5]} 32... Ne5 {[%clk 0:01:15.2]} 33. Bxg6+ {[%clk 0:01:57.9]}
33... Kxg6 {[%clk 0:01:13.1]} 34. Rxe5 {[%clk 0:01:57.9]} 34... Rxd6 {[%clk
0:01:12.7]} 35. axb5 {[%clk 0:01:57.4]} 35... axb5 {[%clk 0:01:11]} 36. Rxc5
{[%clk 0:01:58.8]} 36... Rb6 {[%clk 0:01:07.6]} 37. b4 {[%clk 0:01:53.4]} 37...
h5 {[%clk 0:01:05.9]} 38. h4 {[%clk 0:01:47.1]} 38... Kh6 {[%clk 0:01:06]} 39.
Rg5 {[%clk 0:01:46.6]} 39... Rb8 {[%clk 0:01:04.5]} 40. Kg2 {[%clk 0:01:46.5]}
40... Rb7 {[%clk 0:01:04.4]} 41. Kg3 {[%clk 0:01:47.7]} 41... Rb8 {[%clk
0:01:05]} 42. f4 {[%clk 0:01:49.4]} 42... Rb7 {[%clk 0:01:05.4]} 43. f5 {[%clk
0:01:50.4]} 43... Rb8 {[%clk 0:01:05.2]} 44. f6 {[%clk 0:01:42.2]} 44... Rf8
{[%clk 0:01:02.8]} 45. Rf5 {[%clk 0:01:31.8]} 45... Kg6 {[%clk 0:01:02.6]} 46.
Kf4 {[%clk 0:01:33.3]} 46... Rf7 {[%clk 0:00:55.5]} 47. Rg5+ {[%clk 0:01:31.4]}
47... Kxf6 {[%clk 0:00:53.2]} 48. Rf5+ {[%clk 0:01:27.2]} 1-0